fUST/lending_fUST_20250826
["ID","MTS","AMOUNT","RATE_DAILY","PERIOD"]
[381403511,1756187114055,-480.0,0.00041369,30]
[381403512,1756187114104,-8002.8,0.00041369,30]
[381403513,1756187114151,-7381.61,0.00041369,30]
[381403514,1756187114202,-2217.85,0.00041369,30]
[381403515,1756187114249,-480.0,0.00041369,30]
[381403516,1756187114298,-816.69,0.00041369,30]
[381403517,1756187114344,-3800.15,0.00041369,30]
[381403518,1756187114392,-656.35,0.00041369,30]
[381403519,1756187114439,-480.78052454,0.00041369,30]
[381403520,1756187114489,-647.88,0.00041369,30]
[381403521,1756187114541,-969.53,0.00041369,30]
[381403522,1756187114589,-3368.63,0.00041369,30]
[381403523,1756187114637,-480.62904865,0.00041369,30]
[381403524,1756187114686,-480.0,0.00041369,30]
[381403525,1756187114734,-480.81718544,0.00041369,30]
[381403526,1756187114782,-480.0,0.00041369,30]
[381403527,1756187114831,-2412.8,0.00041369,30]
[381403528,1756187114882,-5785.04,0.00041369,30]
[381403529,1756187114934,-7098.96,0.00041369,30]
[381403530,1756187114997,-480.0,0.00041369,30]
[381403531,1756187115048,-622.48,0.00041369,30]
[381403532,1756187115100,-894.0,0.00041369,30]
[381403533,1756187115150,-482.65,0.00041369,30]
[381403534,1756187115203,-4203.81,0.00041369,30]
[381403535,1756187115256,-480.0,0.00041369,30]
[381403536,1756187115305,-2045.5,0.00041369,30]
[381403537,1756187115354,-480.925193,0.00041369,30]
[381403538,1756187115405,-480.0,0.00041369,30]
[381403539,1756187115457,-480.0,0.00041369,30]
[381403540,1756187115508,-809.01,0.00041369,30]
[381403541,1756187115558,-480.0,0.00041369,30]
[381403542,1756187115608,-480.0,0.00041369,30]
[381403543,1756187115660,-480.0,0.00041369,30]
[381403544,1756187115711,-1204.87,0.00041369,30]
[381403545,1756187115762,-480.0,0.00041369,30]
[381403546,1756187115814,-480.0,0.00041369,30]
[381403547,1756187115866,-656.95,0.00041369,30]
[381403548,1756187115919,-507.25,0.00041369,30]
[381403549,1756187115970,-480.9938874,0.00041369,30]
[381403550,1756187116021,-480.0,0.00041369,30]
[381403551,1756187116072,-481.13826038,0.00041369,30]
[381403552,1756187116124,-480.0,0.00041369,30]
[381403553,1756187116173,-480.0,0.00041369,30]
[381403554,1756187116222,-540.05,0.00041369,30]
[381403555,1756187116272,-480.0,0.00041369,30]
[381403556,1756187116320,-640.83,0.00041369,30]
[381403557,1756187116366,-5597.08,0.00041369,30]
[381403558,1756187116413,-480.0,0.00041369,30]
[381403559,1756187116463,-480.0,0.00041369,30]
[381403560,1756187116509,-480.0,0.00041369,30]
[381403561,1756187116556,-480.0,0.00041369,30]
[381403562,1756187116602,-660.16,0.00041369,30]
[381403563,1756187116649,-4261.28,0.00041369,30]
[381403564,1756187116696,-507.28,0.00041369,30]
[381403565,1756187116743,-984.43,0.00041369,30]
[381403566,1756187116791,-480.0,0.00041369,30]
[381403567,1756187116838,-877.78,0.00041369,30]
[381403568,1756187116886,-543.6,0.00041369,30]
[381403569,1756187116934,-480.0,0.00041369,30]
[381403570,1756187116980,-749.82,0.00041369,30]
[381403571,1756187117030,-1450.64,0.00041369,30]
[381403572,1756187117081,-480.0,0.00041369,30]
[381403573,1756187117130,-635.2,0.00041369,30]
[381403574,1756187117179,-480.0,0.00041369,30]
[381403575,1756187117227,-480.68232384,0.00041369,30]
[381403576,1756187117276,-480.0,0.00041369,30]
[381403577,1756187117324,-1213.3,0.00041369,30]
[381403578,1756187117373,-480.0,0.00041369,30]
[381403579,1756187117423,-641.11,0.00041369,30]
[381403580,1756187117471,-774.97,0.00041369,30]
[381403581,1756187117518,-480.76672484,0.00041369,30]
[381403582,1756187117565,-868.35,0.00041369,30]
[381403583,1756187117612,-480.0,0.00041369,30]
[381403584,1756187117658,-481.33080816,0.00041369,30]
[381403585,1756187117705,-1600.3,0.00041369,30]
[381403586,1756187117752,-972.63,0.00041369,30]
[381403587,1756187117800,-480.0,0.00041369,30]
[381403588,1756187117848,-562.65,0.00041369,30]
[381403589,1756187117894,-480.59699267,0.00041369,30]
[381403590,1756187117939,-2294.96,0.00041369,30]
[381403591,1756187117986,-922.31,0.00041369,30]
[381403592,1756187118032,-480.77527775,0.00041369,30]
[381403593,1756187118080,-480.0,0.00041369,30]
[381403594,1756187118299,-480.0,0.00041369,30]
[381403595,1756187118350,-480.0,0.00041369,30]
[381403596,1756187118399,-1086.31,0.00041369,30]
[381403597,1756187118449,-956.89,0.00041369,30]
[381403598,1756187118500,-1580.22,0.00041369,30]
[381403599,1756187118551,-1175.6,0.00041369,30]
[381403600,1756187118600,-480.0,0.00041369,30]
[381403601,1756187118650,-480.0,0.00041369,30]
[381403602,1756187118699,-1160.6,0.00041369,30]
[381403603,1756187118747,-480.0,0.00041369,30]
[381403604,1756187118797,-482.46935567,0.00041369,30]
[381403605,1756187118847,-480.0,0.00041369,30]
[381403606,1756187118896,-480.0,0.00041369,30]
[381403607,1756187118946,-480.0,0.00041369,30]
[381403608,1756187118997,-2764.97,0.00041369,30]
[381403609,1756187119047,-2247.08,0.00041369,30]
[381403610,1756187119098,-2060.26,0.00041369,30]
[381403611,1756187119151,-1656.66,0.00041369,30]
[381403612,1756187119202,-480.0,0.00041369,30]
[381403613,1756187119254,-480.0,0.00041369,30]
[381403614,1756187119302,-480.0,0.00041369,30]
[381403615,1756187119350,-480.0,0.00041369,30]
[381403616,1756187119399,-480.79526155,0.00041369,30]
[381403617,1756187119447,-480.0,0.00041369,30]
[381403618,1756187119495,-545.79,0.00041369,30]
[381403619,1756187119546,-1051.04,0.00041369,30]
[381403620,1756187119595,-774.94,0.00041369,30]
[381403621,1756187119646,-480.0,0.00041369,30]
[381403622,1756187119696,-651.17,0.00041369,30]
[381403623,1756187119744,-1347.95,0.00041369,30]
[381403624,1756187119791,-855.34,0.00041369,30]
[381403625,1756187119838,-480.0,0.00041369,30]
[381403626,1756187119885,-481.05877966,0.00041369,30]
[381403627,1756187119931,-1504.8,0.00041369,30]
[381403628,1756187119978,-480.0,0.00041369,30]
[381403629,1756187120025,-870.73,0.00041369,30]
[381403630,1756187120076,-480.0,0.00041369,30]
[381403631,1756187120125,-562.47,0.00041369,30]
[381403632,1756187120175,-480.0,0.00041369,30]
[381403633,1756187120224,-1041.99,0.00041369,30]
[381403634,1756187120273,-754.8,0.00041369,30]
[381403635,1756187120322,-2704.05,0.00041369,30]
[381403636,1756187120372,-534.08,0.00041369,30]
[381403637,1756187120427,-480.0,0.00041369,30]
[381403638,1756187120477,-410.59463232,0.00041369,30]
[381403639,1756187120526,-480.0,0.00041369,30]
[381403640,1756187120574,-496.92,0.00041369,30]
[381403641,1756187120623,-480.0,0.00041369,30]
[381403642,1756187120674,-3294.9,0.00041369,30]
[381403643,1756187120724,-1034.82,0.00041369,30]
[381403644,1756187120773,-480.0,0.00041369,30]
[381403645,1756187120824,-480.0,0.00041369,30]
[381403646,1756187120874,-480.0,0.00041369,30]
[381403647,1756187120925,-15283.92,0.00041369,30]
[381403648,1756187120974,-480.0,0.00041369,30]
[381403649,1756187121025,-1077.83,0.00041369,30]
[381403650,1756187121075,-480.0,0.00041369,30]
[381403652,1756187121126,-2788.11,0.00041369,30]
[381403653,1756187121175,-2368.63,0.00041369,30]
[381403654,1756187121226,-480.0,0.00041369,30]
[381403655,1756187121275,-480.0,0.00041369,30]
[381403656,1756187121323,-2279.41,0.00041369,30]
[381403657,1756187121370,-480.0,0.00041369,30]
[381403658,1756187121420,-480.0,0.00041369,30]
[381403659,1756187121468,-1009.58,0.00041369,30]
[381403660,1756187121517,-480.0,0.00041369,30]
[381403661,1756187121566,-480.0,0.00041369,30]
[381403662,1756187121614,-480.0,0.00041369,30]
[381403663,1756187121663,-480.0,0.00041369,30]
[381403664,1756187121713,-480.0,0.00041369,30]
[381403665,1756187121762,-480.0,0.00041369,30]
[381403666,1756187121814,-681.18,0.00041369,30]
[381403667,1756187121864,-1492.37,0.00041369,30]
[381403668,1756187121912,-480.0,0.00041369,30]
[381403669,1756187121963,-863.35,0.00041369,30]
[381403670,1756187122011,-480.0,0.00041369,30]
[381403671,1756187122061,-480.0,0.00041369,30]
[381403672,1756187122109,-480.0,0.00041369,30]
[381403673,1756187122158,-1925.94,0.00041369,30]
[381403674,1756187122207,-3849.32,0.00041369,30]
[381403675,1756187122255,-9275.55,0.00041369,30]
[381403676,1756187122302,-480.0,0.00041369,30]
[381403677,1756187122348,-480.56959726,0.00041369,30]
[381403678,1756187122394,-480.0,0.00041369,30]
[381403679,1756187122441,-480.0,0.00041369,30]
[381403680,1756187122487,-1232.58,0.00041369,30]
[381403681,1756187122535,-504.29,0.00041369,30]
[381403682,1756187122582,-3009.67,0.00041369,30]
[381403683,1756187122629,-480.0,0.00041369,30]
[381403684,1756187122677,-480.0,0.00041369,30]
[381403685,1756187122724,-680.11,0.00041369,30]
[381403686,1756187122772,-959.01,0.00041369,30]
[381403687,1756187122821,-1259.71,0.00041369,30]
[381403688,1756187122869,-480.0,0.00041369,30]
[381403689,1756187122918,-1608.95,0.00041369,30]
[381403690,1756187122968,-480.0,0.00041369,30]
[381403691,1756187123018,-480.0,0.00041369,30]
[381403692,1756187123068,-500.0,0.00041388,30]
[381403693,1756187123123,-212.94064104,0.00041452,120]
[381403694,1756187123176,-500.0,0.00041459,30]
[381403695,1756187123229,-1095.64,0.00041575,120]
[381403696,1756187123280,-212.94064104,0.00041604,120]
[381403697,1756187123329,-151.0,0.00041643,30]
[381403698,1756187123381,-700.0,0.00041643,60]
[381403699,1756187123599,-480.0,0.00041643,30]
[381403700,1756187123651,-480.0,0.00041643,30]
[381403701,1756187123703,-480.0,0.00041643,30]
[381403702,1756187123752,-460.29959888,0.00041643,30]
[381403703,1756187123801,-480.0,0.00041643,30]
[381403704,1756187123850,-566.6,0.00041643,30]
[381403705,1756187123898,-480.0,0.00041643,30]
[381403706,1756187123945,-480.0,0.00041643,30]
[381403707,1756187123994,-1850.7,0.00041643,30]
[381403708,1756187124043,-480.0,0.00041643,30]
[381403709,1756187124090,-480.0,0.00041643,30]
[381403710,1756187124138,-480.0,0.00041643,30]
[381403711,1756187124186,-480.0,0.00041643,30]
[381403712,1756187124234,-543.17,0.00041643,30]
[381403713,1756187124280,-621.17,0.00041643,30]
[381403714,1756187124327,-480.0,0.00041643,30]
[381403715,1756187124374,-480.0,0.00041643,30]
[381403716,1756187124425,-480.0,0.00041643,30]
[381403717,1756187124473,-480.0,0.00041643,30]
[381403718,1756187124520,-480.0,0.00041643,30]
[381403719,1756187124567,-793.42,0.00041643,30]
[381403720,1756187124617,-642.04,0.00041643,30]
[381403721,1756187124665,-250.97,0.00041643,30]
[381403722,1756187124714,-480.0,0.00041643,30]
[381403723,1756187124762,-480.0,0.00041643,30]
[381403724,1756187124811,-480.0,0.00041643,30]
[381403725,1756187124859,-691.48,0.00041643,30]
[381403726,1756187124906,-480.0,0.00041643,30]
[381403727,1756187124955,-2114.57,0.00041643,30]
[381403728,1756187125001,-888.53,0.00041643,30]
[381403729,1756187125049,-480.0,0.00041643,30]
[381403730,1756187125096,-517.16,0.00041643,30]
[381403731,1756187125144,-480.0,0.00041643,30]
[381403732,1756187125191,-619.71,0.00041643,30]
[381403733,1756187125238,-598.31,0.00041643,30]
[381403734,1756187125284,-480.0,0.00041643,30]
[381403735,1756187125330,-757.05,0.00041643,30]
[381403736,1756187125377,-201.96907188,0.00041643,30]
[381403737,1756187125426,-480.0,0.00041643,30]
[381403738,1756187125474,-480.0,0.00041643,30]
[381403739,1756187125520,-493.06,0.00041643,30]
[381403740,1756187125568,-869.5,0.00041643,30]
[381403741,1756187125617,-481.28580604,0.00041643,30]
[381403742,1756187125665,-480.0,0.00041643,30]
[381403743,1756187125713,-480.0,0.00041643,30]
[381403744,1756187125760,-480.0,0.00041643,30]
[381403745,1756187125808,-480.0,0.00041643,30]
[381403746,1756187125858,-2697.29,0.00041643,30]
[381403747,1756187125910,-554.1,0.00041643,30]
[381403748,1756187125961,-579.77,0.00041643,30]
[381403749,1756187126012,-724.32,0.00041643,30]
[381403750,1756187126059,-745.65,0.00041643,30]
[381403751,1756187126108,-480.0,0.00041643,30]
[381403752,1756187126157,-480.0,0.00041643,30]
[381403753,1756187126206,-480.0,0.00041643,30]
[381403754,1756187126253,-1063.96,0.00041643,30]
[381403755,1756187126300,-481.97,0.00041643,30]
[381403756,1756187126347,-480.0,0.00041643,30]
[381403757,1756187126395,-480.0,0.00041643,30]
[381403758,1756187126449,-480.0,0.00041643,30]
[381403759,1756187126506,-480.0,0.00041643,30]
[381403760,1756187126562,-480.0,0.00041643,30]
[381403761,1756187126615,-827.93,0.00041643,30]
[381403762,1756187126665,-854.06,0.00041643,30]
[381403763,1756187126718,-862.18,0.00041643,30]
[381403764,1756187126768,-1357.56,0.00041643,30]
[381403765,1756187126819,-480.0,0.00041643,30]
[381403766,1756187126869,-480.0,0.00041643,30]
[381403767,1756187126920,-1433.81,0.00041643,30]
[381403768,1756187126976,-480.0,0.00041643,30]
[381403769,1756187127024,-480.0,0.00041643,30]
[381403770,1756187127072,-480.0,0.00041643,30]
[381403771,1756187127122,-480.0,0.00041643,30]
[381403772,1756187127171,-480.0,0.00041643,30]
[381403773,1756187127226,-480.0,0.00041643,30]
[381403774,1756187127275,-480.0,0.00041643,30]
[381403775,1756187127325,-480.0,0.00041643,30]
[381403776,1756187127375,-609.81,0.00041643,30]
[381403777,1756187127425,-1096.74,0.00041643,30]
[381403778,1756187127476,-1000.0,0.00041643,30]
[381403779,1756187127524,-271.84029187,0.00041643,30]
[381403780,1756187127573,-480.0,0.00041643,30]
[381403781,1756187127625,-480.0,0.00041643,30]
[381403782,1756187127673,-480.0,0.00041643,30]
[381403783,1756187127728,-773.09,0.00041643,30]
[381403784,1756187127783,-1867.32,0.00041643,30]
[381403785,1756187127834,-480.0,0.00041643,30]
[381403786,1756187127884,-480.0,0.00041643,30]
[381403787,1756187127938,-480.0,0.00041643,30]
[381403788,1756187127987,-480.0,0.00041643,30]
[381403789,1756187128040,-480.0,0.00041643,30]
[381403790,1756187128091,-485.58,0.00041643,30]
[381403791,1756187128140,-712.91,0.00041643,30]
[381403792,1756187128189,-480.0,0.00041643,30]
[381403793,1756187128239,-480.0,0.00041643,30]
[381403794,1756187128285,-969.38,0.00041643,30]
[381403795,1756187128332,-480.0,0.00041643,30]
[381403796,1756187128380,-968.3,0.00041643,30]
[381403797,1756187128431,-480.0,0.00041643,30]
[381403798,1756187128478,-480.0,0.00041643,30]
[381403799,1756187128525,-480.0,0.00041643,30]
[381403800,1756187128573,-514.53,0.00041643,30]
[381403801,1756187128621,-480.0,0.00041643,30]
[381403802,1756187128836,-755.81,0.00041643,30]
[381403803,1756187128888,-481.35008951,0.00041643,30]
[381403804,1756187128941,-1561.44,0.00041643,30]
[381403805,1756187128990,-483.42,0.00041643,30]
[381403806,1756187129039,-824.68,0.00041643,30]
[381403807,1756187129088,-480.0,0.00041643,30]
[381403808,1756187129138,-984.9,0.00041643,30]
[381403809,1756187129191,-480.0,0.00041643,30]
[381403810,1756187129247,-480.0,0.00041643,30]
[381403811,1756187129300,-1037.06,0.00041643,30]
[381403812,1756187129351,-480.0,0.00041643,30]
[381403813,1756187129401,-812.98,0.00041643,30]
[381403814,1756187129450,-1131.78,0.00041643,30]
[381403815,1756187129501,-480.0,0.00041643,30]
[381403816,1756187129552,-480.0,0.00041643,30]
[381403817,1756187129601,-946.95,0.00041643,30]
[381403818,1756187129650,-480.0,0.00041643,30]
[381403819,1756187129696,-1093.47,0.00041643,30]
[381403820,1756187129743,-1059.5,0.00041643,30]
[381403821,1756187129793,-611.65649906,0.00041643,30]
[381403822,1756187129845,-778.35,0.00041643,30]
[381403823,1756187129896,-480.0,0.00041643,30]
[381403824,1756187129945,-480.0,0.00041643,30]
[381403825,1756187129993,-480.0,0.00041643,30]
[381403826,1756187130041,-480.0,0.00041643,30]
[381403827,1756187130093,-766.08,0.00041643,30]
[381403828,1756187130146,-613.26,0.00041643,30]
[381403829,1756187130196,-480.0,0.00041643,30]
[381403830,1756187130247,-546.58,0.00041643,30]
[381403831,1756187130297,-784.32,0.00041643,30]
[381403832,1756187130345,-480.0,0.00041643,30]
[381403833,1756187130394,-480.0,0.00041643,30]
[381403834,1756187130443,-606.08,0.00041643,30]
[381403835,1756187130492,-480.0,0.00041643,30]
[381403836,1756187130543,-1119.8,0.00041643,30]
[381403837,1756187130592,-699.17,0.00041643,30]
[381403838,1756187130641,-547.32,0.00041643,30]
[381403839,1756187130690,-864.9,0.00041643,30]
[381403840,1756187130743,-2132.91,0.00041643,30]
[381403841,1756187130802,-480.0,0.00041643,30]
[381403842,1756187130851,-583.23,0.00041643,30]
[381403843,1756187130899,-480.0,0.00041643,30]
[381403844,1756187130946,-480.0,0.00041643,30]
[381403845,1756187131004,-548.22,0.00041643,30]
[381403846,1756187131053,-480.0,0.00041643,30]
[381403847,1756187131102,-1219.3,0.00041643,30]
[381403848,1756187131156,-480.0,0.00041643,30]
[381403849,1756187131208,-480.0,0.00041643,30]
[381403850,1756187131256,-1408.59,0.00041643,30]
[381403851,1756187131302,-1216.02,0.00041643,30]
[381403852,1756187131352,-928.19,0.00041643,30]
[381403853,1756187131402,-480.0,0.00041643,30]
[381403854,1756187131470,-1392.95,0.00041643,30]
[381403855,1756187131521,-480.0,0.00041643,30]
[381403856,1756187131574,-441.94659042,0.00041643,30]
[381403857,1756187131636,-480.0,0.00041643,30]
[381403858,1756187131686,-3500.76,0.00041643,30]
[381403859,1756187131733,-480.0,0.00041643,30]
[381403860,1756187131779,-3378.02,0.00041643,30]
[381403861,1756187131827,-480.0,0.00041643,30]
[381403862,1756187131876,-480.0,0.00041643,30]
[381403863,1756187131922,-480.0,0.00041643,30]
[381403864,1756187131974,-480.0,0.00041643,30]
[381403865,1756187132021,-480.0,0.00041643,30]
[381403866,1756187132068,-480.0,0.00041643,30]
[381403867,1756187132117,-480.0,0.00041643,30]
[381403868,1756187132165,-699.47,0.00041643,30]
[381403869,1756187132212,-1570.07,0.00041643,30]
[381403870,1756187132258,-1403.21,0.00041643,30]
[381403871,1756187132304,-480.0,0.00041643,30]
[381403872,1756187132349,-558.48,0.00041643,30]
[381403873,1756187132395,-480.0,0.00041643,30]
[381403874,1756187132446,-241.83877976,0.00041643,30]
[381403875,1756187132492,-911.97,0.00041643,30]
[381403876,1756187132541,-480.0,0.00041643,30]
[381403877,1756187132590,-307.27625591,0.00041643,30]
[381403878,1756187132637,-480.0,0.00041643,30]
[381403879,1756187132684,-480.0,0.00041643,30]
[381403880,1756187132730,-480.0,0.00041643,30]
[381403881,1756187132779,-480.0,0.00041643,30]
[381403882,1756187132829,-480.0,0.00041643,30]
[381403883,1756187132878,-480.0,0.00041643,30]
[381403884,1756187132931,-702.58,0.00041643,30]
[381403885,1756187132979,-490.35,0.00041643,30]
[381403886,1756187133027,-595.29,0.00041643,30]
[381403887,1756187133079,-480.0,0.00041643,30]
[381403888,1756187133132,-516.7,0.00041643,30]
[381403889,1756187133185,-2930.53,0.00041643,30]
[381403890,1756187133235,-480.0,0.00041643,30]
[381403891,1756187133284,-480.0,0.00041643,30]
[381403892,1756187133334,-1847.68,0.00041643,30]
[381403893,1756187133385,-2174.66,0.00041643,30]
[381403894,1756187133435,-480.0,0.00041643,30]
[381403895,1756187133485,-480.0,0.00041643,30]
[381403896,1756187133534,-1125.4,0.00041643,30]
[381403897,1756187133584,-684.32,0.00041643,30]
[381403898,1756187133639,-480.0,0.00041643,30]
[381403899,1756187133688,-157.3920778,0.00041643,30]
[381403900,1756187133735,-480.0,0.00041643,30]
[381403901,1756187133782,-3328.1,0.00041643,30]
[381403902,1756187133831,-480.0,0.00041643,30]
[381403903,1756187133878,-611.68,0.00041643,30]
[381403904,1756187133928,-1077.84,0.00041643,30]
[381403905,1756187134151,-480.0,0.00041643,30]
[381403906,1756187134202,-1930.7,0.00041643,30]
[381403907,1756187134253,-480.0,0.00041643,30]
[381403908,1756187134302,-480.0,0.00041643,30]
[381403909,1756187134351,-480.0,0.00041643,30]
[381403910,1756187134399,-480.0,0.00041643,30]
[381403911,1756187134449,-1062.37,0.00041643,30]
[381403912,1756187134498,-480.0,0.00041643,30]
[381403913,1756187134559,-308.83937878,0.00041643,30]
[381403914,1756187134606,-856.78,0.00041643,30]
[381403915,1756187134652,-480.0,0.00041643,30]
[381403916,1756187134697,-1103.57,0.00041643,30]
[381403917,1756187134743,-480.0,0.00041643,30]
[381403918,1756187134788,-1931.9,0.00041643,30]
[381403919,1756187134835,-480.0,0.00041643,30]
[381403920,1756187134880,-480.0,0.00041643,30]
[381403921,1756187134925,-699.1,0.00041643,30]
[381403922,1756187134972,-480.0,0.00041643,30]
[381403923,1756187135018,-2699.24,0.00041643,30]
[381403924,1756187135066,-480.0,0.00041643,30]
[381403925,1756187135113,-480.0,0.00041643,30]
[381403926,1756187135161,-480.0,0.00041643,30]
[381403927,1756187135207,-576.96118299,0.00041643,30]
[381403928,1756187135253,-480.0,0.00041643,30]
[381403929,1756187135298,-726.68,0.00041643,30]
[381403930,1756187135345,-480.0,0.00041643,30]
[381403931,1756187135391,-480.0,0.00041643,30]
[381403932,1756187135439,-480.0,0.00041643,30]
[381403933,1756187135484,-480.0,0.00041643,30]
[381403934,1756187135530,-480.0,0.00041643,30]
[381403935,1756187135579,-1181.73,0.00041643,30]
[381403936,1756187135628,-480.0,0.00041643,30]
[381403937,1756187135677,-480.0,0.00041643,30]
[381403938,1756187135728,-480.0,0.00041643,30]
[381403939,1756187135775,-767.18,0.00041643,30]
[381403940,1756187135823,-1468.19,0.00041643,30]
[381403941,1756187135871,-1445.59,0.00041643,30]
[381403942,1756187135918,-480.0,0.00041643,30]
[381403943,1756187135968,-1781.01,0.00041643,30]
[381403944,1756187136015,-480.0,0.00041643,30]
[381403945,1756187136062,-949.84,0.00041643,30]
[381403946,1756187136108,-1678.18,0.00041643,30]
[381403947,1756187136157,-480.0,0.00041643,30]
[381403948,1756187136207,-1045.59,0.00041643,30]
[381403949,1756187136254,-671.34,0.00041643,30]
[381403950,1756187136300,-480.0,0.00041643,30]
[381403951,1756187136346,-744.23,0.00041643,30]
[381403952,1756187136393,-572.53,0.00041643,30]
[381403953,1756187136439,-610.92,0.00041643,30]
[381403954,1756187136488,-2752.19,0.00041643,30]
[381403955,1756187136539,-480.0,0.00041643,30]
[381403956,1756187136586,-546.37,0.00041643,30]
[381403957,1756187136634,-1316.44,0.00041643,30]
[381403958,1756187136685,-480.0,0.00041643,30]
[381403959,1756187136733,-933.97,0.00041643,30]
[381403960,1756187136782,-1074.83,0.00041643,30]
[381403961,1756187136831,-204.84444976,0.00041643,30]
[381403962,1756187136882,-2224.26,0.00041643,30]
[381403963,1756187136932,-1582.19,0.00041643,30]
[381403964,1756187136982,-480.0,0.00041643,30]
[381403965,1756187137032,-1009.99,0.00041643,30]
[381403966,1756187137080,-480.0,0.00041643,30]
[381403967,1756187137130,-480.0,0.00041643,30]
[381403968,1756187137180,-572.23,0.00041643,30]
[381403969,1756187137231,-480.0,0.00041643,30]
[381403970,1756187137278,-670.71,0.00041643,30]
[381403971,1756187137324,-629.39,0.00041643,30]
[381403972,1756187137369,-480.0,0.00041643,30]
[381403973,1756187137417,-1198.08,0.00041643,30]
[381403974,1756187137465,-482.24,0.00041643,30]
[381403975,1756187137512,-687.04,0.00041643,30]
[381403976,1756187137560,-480.0,0.00041643,30]
[381403977,1756187137606,-3244.81,0.00041643,30]
[381403978,1756187137654,-480.0,0.00041643,30]
[381403979,1756187137703,-480.0,0.00041643,30]
[381403980,1756187137752,-480.0,0.00041643,30]
[381403981,1756187137802,-500.0,0.00041643,120]
[381403982,1756187137853,-480.0,0.00041643,30]
[381403983,1756187137905,-836.39,0.00041643,30]
[381403984,1756187137957,-1124.64,0.00041643,30]
[381403985,1756187138008,-887.1,0.00041643,30]
[381403986,1756187138056,-480.0,0.00041643,30]
[381403987,1756187138103,-920.96,0.00041643,30]
[381403988,1756187138150,-480.0,0.00041643,30]
[381403989,1756187138198,-480.0,0.00041643,30]
[381403990,1756187138246,-480.0,0.00041643,30]
[381403991,1756187138295,-480.0,0.00041643,30]
[381403992,1756187138346,-732.29,0.00041643,30]
[381403993,1756187138397,-1972.6,0.00041643,30]
[381403994,1756187138449,-480.0,0.00041643,30]
[381403995,1756187138499,-510.0,0.00041643,30]
[381403996,1756187138551,-633.75,0.00041643,30]
[381403997,1756187138601,-593.11,0.00041643,30]
[381403998,1756187138651,-512.53,0.00041643,30]
[381403999,1756187138698,-480.0,0.00041643,30]
[381404000,1756187138749,-480.0,0.00041643,30]
[381404001,1756187138798,-486.38,0.00041643,30]
[381404002,1756187138850,-480.0,0.00041643,30]
[381404003,1756187138902,-480.0,0.00041643,30]
[381404004,1756187138953,-1320.69,0.00041643,30]
[381404005,1756187139006,-1355.42,0.00041643,30]
[381404006,1756187139056,-480.0,0.00041643,30]
[381404007,1756187139107,-704.66,0.00041643,30]
[381404008,1756187139323,-480.0,0.00041643,30]
[381404009,1756187139372,-480.0,0.00041643,30]
[381404010,1756187139424,-480.0,0.00041643,30]
[381404011,1756187139471,-632.02,0.00041643,30]